[Event "Titled Tuesday Blitz July 11 Late 2023"]
[White "Graif, William"]
[Black "Buchenau, Frank"]
[WhiteFideId "2609835"]
[BlackFideId "4604350"]
[WhiteElo "2531"]
[BlackElo "2393"]
[Result "0-1"]
[Round "8"]
[TimeControl "180+2"]
[Date "2023.07.11"]
[WhiteClock "0:00:00"]
[BlackClock "0:00:42"]
[Board "85"]

1. e4 {[%clk 0:03:00]}  e6 {[%clk 0:02:59]} 2. d4 {[%clk 0:02:59]}  d5 {[%clk 0:03:00]} 3. Be3 {[%clk 0:02:59]}  dxe4 {[%clk 0:02:59]} 4. f3 {[%clk 0:03:00]}  f5 {[%clk 0:02:58]} 5. Nd2 {[%clk 0:02:51]}  Nf6 {[%clk 0:02:58]} 6. fxe4 {[%clk 0:02:49]}  fxe4 {[%clk 0:02:57]} 7. Nh3 {[%clk 0:02:40]}  Bd6 {[%clk 0:02:49]} 8. Bc4 {[%clk 0:02:33]}  O-O {[%clk 0:02:42]} 9. Ng5 {[%clk 0:02:20]}  Nd5 {[%clk 0:02:35]} 10. Qh5 {[%clk 0:01:50]}  h6 {[%clk 0:02:30]} 11. Nxe6 {[%clk 0:01:37]}  Bxe6 {[%clk 0:02:20]} 12. Bxd5 {[%clk 0:01:38]}  Bg3+ {[%clk 0:02:03]} 13. hxg3 {[%clk 0:01:37]}  Qxd5 {[%clk 0:01:50]} 14. Qxd5 {[%clk 0:01:27]}  Bxd5 {[%clk 0:01:51]} 15. c4 {[%clk 0:01:28]}  Bf7 {[%clk 0:01:49]} 16. Rh4 {[%clk 0:01:11]}  Bg6 {[%clk 0:01:35]} 17. Rg4 {[%clk 0:00:54]}  Bf5 {[%clk 0:01:33]} 18. Rf4 {[%clk 0:00:53]}  Nc6 {[%clk 0:01:18]} 19. Ke2 {[%clk 0:00:44]}  g5 {[%clk 0:01:13]} 20. Rxf5 {[%clk 0:00:14]}  Rxf5 {[%clk 0:01:12]} 21. g4 {[%clk 0:00:13]}  Rf7 {[%clk 0:01:05]} 22. a3 {[%clk 0:00:11]}  Re8 {[%clk 0:01:03]} 23. Rf1 {[%clk 0:00:11]}  Rxf1 {[%clk 0:01:02]} 24. Nxf1 {[%clk 0:00:11]}  Rd8 {[%clk 0:01:01]} 25. d5 {[%clk 0:00:10]}  Ne5 {[%clk 0:01:01]} 26. b3 {[%clk 0:00:08]}  Nxg4 {[%clk 0:00:59]} 27. Bd4 {[%clk 0:00:09]}  b6 {[%clk 0:00:55]} 28. Ng3 {[%clk 0:00:09]}  Re8 {[%clk 0:00:53]} 29. Nf5 {[%clk 0:00:09]}  Kf7 {[%clk 0:00:52]} 30. d6 {[%clk 0:00:08]}  Kg6 {[%clk 0:00:49]} 31. Ne7+ {[%clk 0:00:06]}  Kf7 {[%clk 0:00:48]} 32. d7 {[%clk 0:00:04]}  Rd8 {[%clk 0:00:47]} 33. Nc6 {[%clk 0:00:02]}  Rxd7 {[%clk 0:00:46]} 34. Bg1 {[%clk 0:00:00]}  a5 {[%clk 0:00:42]} 0-1


[Site "https://www.chess.com"]

[Event "Titled Tuesday Blitz July 11 Late 2023"]
[White "Palencia Morales, Wilson Guillermo"]
[Black "Carrasco Miranda, Andres"]
[WhiteFideId "4401859"]
[BlackFideId "3405990"]
[WhiteElo "2520"]
[BlackElo "2392"]
[Result "1-0"]
[Round "8"]
[TimeControl "180+2"]
[Date "2023.07.11"]
[WhiteClock "0:00:03"]
[BlackClock "0:00:00"]
[Board "86"]

1. e4 {[%clk 0:03:00]}  e5 {[%clk 0:02:58]} 2. Nf3 {[%clk 0:03:01]}  Nc6 {[%clk 0:02:57]} 3. Bb5 {[%clk 0:03:01]}  Nf6 {[%clk 0:02:56]} 4. O-O {[%clk 0:02:59]}  Nxe4 {[%clk 0:02:56]} 5. d4 {[%clk 0:02:59]}  Nd6 {[%clk 0:02:56]} 6. Bxc6 {[%clk 0:02:59]}  dxc6 {[%clk 0:02:57]} 7. dxe5 {[%clk 0:02:59]}  Nf5 {[%clk 0:02:58]} 8. Qxd8+ {[%clk 0:03:00]}  Kxd8 {[%clk 0:02:59]} 9. h3 {[%clk 0:03:01]}  h5 {[%clk 0:02:59]} 10. Nc3 {[%clk 0:02:58]}  Ke8 {[%clk 0:02:58]} 11. Bg5 {[%clk 0:02:47]}  Be6 {[%clk 0:02:58]} 12. Rad1 {[%clk 0:02:43]}  Bb4 {[%clk 0:02:50]} 13. Bd2 {[%clk 0:02:24]}  Rd8 {[%clk 0:02:47]} 14. a3 {[%clk 0:02:24]}  Bxc3 {[%clk 0:02:40]} 15. Bxc3 {[%clk 0:02:25]}  h4 {[%clk 0:02:41]} 16. Ng5 {[%clk 0:02:20]}  Rh6 {[%clk 0:02:39]} 17. Rxd8+ {[%clk 0:02:14]}  Kxd8 {[%clk 0:02:39]} 18. Rd1+ {[%clk 0:02:15]}  Kc8 {[%clk 0:02:38]} 19. Bd2 {[%clk 0:02:05]}  b6 {[%clk 0:02:29]} 20. Nxf7 {[%clk 0:01:40]}  Bxf7 {[%clk 0:02:30]} 21. Bxh6 {[%clk 0:01:40]}  Nxh6 {[%clk 0:02:30]} 22. g4 {[%clk 0:01:32]}  hxg3 {[%clk 0:02:30]} 23. fxg3 {[%clk 0:01:33]}  Nf5 {[%clk 0:02:26]} 24. Kf2 {[%clk 0:01:33]}  c5 {[%clk 0:02:15]} 25. c3 {[%clk 0:01:32]}  Be6 {[%clk 0:01:34]} 26. g4 {[%clk 0:01:32]}  Ne7 {[%clk 0:01:32]} 27. Kg3 {[%clk 0:01:27]}  Ng6 {[%clk 0:01:24]} 28. Re1 {[%clk 0:01:24]}  Kd7 {[%clk 0:01:24]} 29. h4 {[%clk 0:01:25]}  Ke7 {[%clk 0:01:20]} 30. h5 {[%clk 0:01:25]}  Nf8 {[%clk 0:01:19]} 31. g5 {[%clk 0:01:24]}  Bf5 {[%clk 0:01:10]} 32. Kf4 {[%clk 0:01:15]}  Bc2 {[%clk 0:01:09]} 33. Kg4 {[%clk 0:00:49]}  a5 {[%clk 0:00:57]} 34. Rf1 {[%clk 0:00:43]}  Nd7 {[%clk 0:00:45]} 35. Re1 {[%clk 0:00:40]}  Ke6 {[%clk 0:00:41]} 36. g6 {[%clk 0:00:37]}  a4 {[%clk 0:00:35]} 37. Kg5 {[%clk 0:00:37]}  Ke7 {[%clk 0:00:24]} 38. h6 {[%clk 0:00:27]}  gxh6+ {[%clk 0:00:22]} 39. Kxh6 {[%clk 0:00:28]}  Bf5 {[%clk 0:00:12]} 40. g7 {[%clk 0:00:16]}  Be6 {[%clk 0:00:08]} 41. Kh7 {[%clk 0:00:16]}  Nb8 {[%clk 0:00:02]} 42. g8=Q {[%clk 0:00:10]}  Bxg8+ {[%clk 0:00:02]} 43. Kxg8 {[%clk 0:00:11]}  Ke6 {[%clk 0:00:02]} 44. Kg7 {[%clk 0:00:11]}  Nc6 {[%clk 0:00:02]} 45. Rf1 {[%clk 0:00:09]}  Nxe5 {[%clk 0:00:02]} 46. Kh6 {[%clk 0:00:07]}  Nd3 {[%clk 0:00:01]} 47. Rb1 {[%clk 0:00:05]}  Kd5 {[%clk 0:00:01]} 48. Kg5 {[%clk 0:00:06]}  Kc4 {[%clk 0:00:02]} 49. Kf5 {[%clk 0:00:05]}  Kb3 {[%clk 0:00:02]} 50. Ke4 {[%clk 0:00:05]}  Nxb2 {[%clk 0:00:02]} 51. Kd5 {[%clk 0:00:04]}  Kxc3 {[%clk 0:00:01]} 52. Kc6 {[%clk 0:00:05]}  Nc4 {[%clk 0:00:00]} 53. Kxc7 {[%clk 0:00:03]} 1-0


[Site "https://www.chess.com"]

[Event "Titled Tuesday Blitz July 11 Late 2023"]
[White "D`Arruda, Ricardo D."]
[Black "dodoucb"]
[WhiteFideId "100692"]
[WhiteElo "2517"]
[BlackElo "2379"]
[Result "0-1"]
[Round "8"]
[TimeControl "180+2"]
[Date "2023.07.11"]
[WhiteClock "0:01:04"]
[BlackClock "0:01:28"]
[Board "88"]

1. d4 {[%clk 0:02:38]}  d5 {[%clk 0:02:59]} 2. Nf3 {[%clk 0:02:36]}  Nf6 {[%clk 0:02:59]} 3. c4 {[%clk 0:02:35]}  c6 {[%clk 0:02:59]} 4. Nc3 {[%clk 0:02:36]}  dxc4 {[%clk 0:02:59]} 5. a4 {[%clk 0:02:35]}  Bf5 {[%clk 0:02:58]} 6. e3 {[%clk 0:02:35]}  e6 {[%clk 0:02:57]} 7. Bxc4 {[%clk 0:02:35]}  Bb4 {[%clk 0:02:56]} 8. O-O {[%clk 0:02:35]}  Nbd7 {[%clk 0:02:57]} 9. Nh4 {[%clk 0:02:34]}  Bg4 {[%clk 0:02:53]} 10. Be2 {[%clk 0:02:34]}  Bxe2 {[%clk 0:02:52]} 11. Qxe2 {[%clk 0:02:35]}  O-O {[%clk 0:02:51]} 12. Nf3 {[%clk 0:02:34]}  Re8 {[%clk 0:02:50]} 13. Rd1 {[%clk 0:02:33]}  Qe7 {[%clk 0:02:49]} 14. e4 {[%clk 0:02:32]}  e5 {[%clk 0:02:48]} 15. dxe5 {[%clk 0:02:25]}  Nxe5 {[%clk 0:02:47]} 16. Nxe5 {[%clk 0:02:19]}  Qxe5 {[%clk 0:02:46]} 17. f4 {[%clk 0:02:19]}  Qe6 {[%clk 0:02:33]} 18. e5 {[%clk 0:02:18]}  Bc5+ {[%clk 0:02:32]} 19. Be3 {[%clk 0:02:12]}  Bxe3+ {[%clk 0:02:27]} 20. Qxe3 {[%clk 0:02:13]}  Ng4 {[%clk 0:02:27]} 21. Qe4 {[%clk 0:02:02]}  Qb3 {[%clk 0:01:58]} 22. Rd2 {[%clk 0:01:54]}  Qb6+ {[%clk 0:01:55]} 23. Qd4 {[%clk 0:01:52]}  Ne3 {[%clk 0:01:36]} 24. Qxb6 {[%clk 0:01:46]}  axb6 {[%clk 0:01:36]} 25. b3 {[%clk 0:01:46]}  Red8 {[%clk 0:01:34]} 26. Rxd8+ {[%clk 0:01:46]}  Rxd8 {[%clk 0:01:33]} 27. Kf2 {[%clk 0:01:17]}  Rd3 {[%clk 0:01:30]} 28. Rc1 {[%clk 0:01:13]}  Rxc3 {[%clk 0:01:30]} 29. Rxc3 {[%clk 0:01:10]}  Nd1+ {[%clk 0:01:29]} 30. Ke2 {[%clk 0:01:11]}  Nxc3+ {[%clk 0:01:29]} 31. Kd3 {[%clk 0:01:12]}  Nd5 {[%clk 0:01:28]} 32. g3 {[%clk 0:01:04]}  f6 {[%clk 0:01:28]} 0-1


[Site "https://www.chess.com"]

[Event "Titled Tuesday Blitz July 11 Late 2023"]
[White "Bilan, Danila"]
[Black "EsmeraldasAnderson03"]
[WhiteFideId "24161918"]
[WhiteElo "2511"]
[BlackElo "2376"]
[Result "1/2-1/2"]
[Round "8"]
[TimeControl "180+2"]
[Date "2023.07.11"]
[WhiteClock "0:00:03"]
[BlackClock "0:00:06"]
[Board "89"]

1. d4 {[%clk 0:03:00]}  d5 {[%clk 0:01:56]} 2. Nf3 {[%clk 0:02:59]}  Nf6 {[%clk 0:01:56]} 3. c4 {[%clk 0:02:58]}  dxc4 {[%clk 0:01:56]} 4. e3 {[%clk 0:02:58]}  a6 {[%clk 0:01:55]} 5. Bxc4 {[%clk 0:02:59]}  c5 {[%clk 0:01:55]} 6. dxc5 {[%clk 0:02:57]}  Qxd1+ {[%clk 0:01:54]} 7. Kxd1 {[%clk 0:02:58]}  e6 {[%clk 0:01:55]} 8. a3 {[%clk 0:02:41]}  Bxc5 {[%clk 0:01:53]} 9. b4 {[%clk 0:02:40]}  Be7 {[%clk 0:01:46]} 10. Bb2 {[%clk 0:02:37]}  b5 {[%clk 0:01:44]} 11. Bd3 {[%clk 0:02:32]}  Bb7 {[%clk 0:01:44]} 12. Nbd2 {[%clk 0:02:30]}  Nbd7 {[%clk 0:01:42]} 13. Nb3 {[%clk 0:02:27]}  Rc8 {[%clk 0:01:40]} 14. Ke2 {[%clk 0:02:23]}  Nb6 {[%clk 0:01:38]} 15. Na5 {[%clk 0:02:20]}  Bd5 {[%clk 0:01:37]} 16. Bd4 {[%clk 0:02:03]}  Nc4 {[%clk 0:01:34]} 17. Nxc4 {[%clk 0:01:46]}  Bxc4 {[%clk 0:01:34]} 18. Rhc1 {[%clk 0:01:44]}  Bxd3+ {[%clk 0:01:32]} 19. Kxd3 {[%clk 0:01:45]}  O-O {[%clk 0:01:32]} 20. Ne5 {[%clk 0:01:36]}  Nd5 {[%clk 0:00:58]} 21. Nc6 {[%clk 0:01:27]}  Bd6 {[%clk 0:00:57]} 22. g3 {[%clk 0:01:18]}  f5 {[%clk 0:00:43]} 23. Rc2 {[%clk 0:01:02]}  Rc7 {[%clk 0:00:19]} 24. Rac1 {[%clk 0:01:00]}  Rd7 {[%clk 0:00:19]} 25. Ke2 {[%clk 0:00:52]}  Nf6 {[%clk 0:00:19]} 26. Na5 {[%clk 0:00:32]}  Ne4 {[%clk 0:00:14]} 27. f3 {[%clk 0:00:28]}  Ng5 {[%clk 0:00:13]} 28. Rc6 {[%clk 0:00:19]}  e5 {[%clk 0:00:13]} 29. Ba1 {[%clk 0:00:14]}  e4 {[%clk 0:00:11]} 30. f4 {[%clk 0:00:13]}  Nf3 {[%clk 0:00:12]} 31. Rd1 {[%clk 0:00:12]}  Rfd8 {[%clk 0:00:06]} 32. Nb3 {[%clk 0:00:10]}  Be7 {[%clk 0:00:05]} 33. Rxd7 {[%clk 0:00:09]}  Rxd7 {[%clk 0:00:06]} 34. Nd4 {[%clk 0:00:10]}  Bf6 {[%clk 0:00:05]} 35. Rxa6 {[%clk 0:00:08]}  Bxd4 {[%clk 0:00:04]} 36. Bxd4 {[%clk 0:00:08]}  Nxd4+ {[%clk 0:00:04]} 37. exd4 {[%clk 0:00:09]}  Rxd4 {[%clk 0:00:05]} 38. Rb6 {[%clk 0:00:09]}  Rd3 {[%clk 0:00:05]} 39. Rxb5 {[%clk 0:00:09]}  Rxa3 {[%clk 0:00:06]} 40. Rxf5 {[%clk 0:00:09]}  Ra2+ {[%clk 0:00:02]} 41. Ke3 {[%clk 0:00:09]}  Rxh2 {[%clk 0:00:03]} 42. Kxe4 {[%clk 0:00:09]}  Rb2 {[%clk 0:00:04]} 43. Kd4 {[%clk 0:00:09]}  Rxb4+ {[%clk 0:00:03]} 44. Ke3 {[%clk 0:00:08]}  Rb8 {[%clk 0:00:04]} 45. Kf3 {[%clk 0:00:08]}  h6 {[%clk 0:00:05]} 46. Kg4 {[%clk 0:00:08]}  Rb3 {[%clk 0:00:06]} 47. Rc5 {[%clk 0:00:08]}  Rb6 {[%clk 0:00:07]} 48. Kf5 {[%clk 0:00:08]}  Kh7 {[%clk 0:00:08]} 49. Re5 {[%clk 0:00:08]}  Rf6+ {[%clk 0:00:08]} 50. Kg4 {[%clk 0:00:08]}  Rg6+ {[%clk 0:00:09]} 51. Kf3 {[%clk 0:00:09]}  Ra6 {[%clk 0:00:10]} 52. Re3 {[%clk 0:00:09]}  Ra4 {[%clk 0:00:10]} 53. Rd3 {[%clk 0:00:09]}  Ra1 {[%clk 0:00:10]} 54. Kg4 {[%clk 0:00:09]}  Rg1 {[%clk 0:00:11]} 55. Rd7 {[%clk 0:00:09]}  Kg6 {[%clk 0:00:11]} 56. Rd6+ {[%clk 0:00:08]}  Kh7 {[%clk 0:00:11]} 57. Rd7 {[%clk 0:00:09]}  Rf1 {[%clk 0:00:12]} 58. Rc7 {[%clk 0:00:09]}  Rf2 {[%clk 0:00:12]} 59. Rc3 {[%clk 0:00:09]}  Kg6 {[%clk 0:00:12]} 60. Rd3 {[%clk 0:00:08]}  h5+ {[%clk 0:00:11]} 61. Kh3 {[%clk 0:00:08]}  Kh6 {[%clk 0:00:11]} 62. Rd6+ {[%clk 0:00:08]}  g6 {[%clk 0:00:11]} 63. Ra6 {[%clk 0:00:08]}  Rf1 {[%clk 0:00:11]} 64. Kg2 {[%clk 0:00:08]}  Ra1 {[%clk 0:00:11]} 65. Re6 {[%clk 0:00:08]}  Ra2+ {[%clk 0:00:11]} 66. Kh3 {[%clk 0:00:08]}  Ra5 {[%clk 0:00:08]} 67. Kg2 {[%clk 0:00:07]}  Rf5 {[%clk 0:00:08]} 68. Kf3 {[%clk 0:00:06]}  Rf8 {[%clk 0:00:07]} 69. Ke4 {[%clk 0:00:06]}  Rf7 {[%clk 0:00:07]} 70. Ke5 {[%clk 0:00:06]}  Rf5+ {[%clk 0:00:06]} 71. Ke4 {[%clk 0:00:06]}  Rf8 {[%clk 0:00:06]} 72. Kf3 {[%clk 0:00:05]}  Rf5 {[%clk 0:00:06]} 73. Kg2 {[%clk 0:00:06]}  h4 {[%clk 0:00:05]} 74. Kf3 {[%clk 0:00:04]}  hxg3 {[%clk 0:00:05]} 75. Kxg3 {[%clk 0:00:05]}  Ra5 {[%clk 0:00:04]} 76. Kg4 {[%clk 0:00:05]}  Rf5 {[%clk 0:00:04]} 77. Re7 {[%clk 0:00:05]}  Rf8 {[%clk 0:00:04]} 78. Rd7 {[%clk 0:00:05]}  Rf5 {[%clk 0:00:04]} 79. Rd8 {[%clk 0:00:05]}  Rb5 {[%clk 0:00:05]} 80. Rh8+ {[%clk 0:00:04]}  Kg7 {[%clk 0:00:06]} 81. Ra8 {[%clk 0:00:04]}  Kh6 {[%clk 0:00:07]} 82. Ra3 {[%clk 0:00:04]}  Kg7 {[%clk 0:00:06]} 83. Rh3 {[%clk 0:00:05]}  Ra5 {[%clk 0:00:06]} 84. Rc3 {[%clk 0:00:05]}  Rd5 {[%clk 0:00:06]} 85. Rc7+ {[%clk 0:00:05]}  Kh6 {[%clk 0:00:07]} 86. Re7 {[%clk 0:00:05]}  Rh5 {[%clk 0:00:07]} 87. Re5 {[%clk 0:00:06]}  Rh1 {[%clk 0:00:06]} 88. Re8 {[%clk 0:00:05]}  Rg1+ {[%clk 0:00:06]} 89. Kf3 {[%clk 0:00:06]}  Ra1 {[%clk 0:00:07]} 90. Kg4 {[%clk 0:00:05]}  Rg1+ {[%clk 0:00:06]} 91. Kf3 {[%clk 0:00:05]}  Ra1 {[%clk 0:00:07]} 92. Kg3 {[%clk 0:00:05]}  Rg1+ {[%clk 0:00:06]} 93. Kh2 {[%clk 0:00:05]}  Rg4 {[%clk 0:00:06]} 94. Re4 {[%clk 0:00:04]}  g5 {[%clk 0:00:06]} 95. fxg5+ {[%clk 0:00:03]}  Kxg5 {[%clk 0:00:05]} 96. Rxg4+ {[%clk 0:00:03]}  Kxg4 {[%clk 0:00:06]} 1/2-1/2


[Site "https://www.chess.com"]

[Event "Titled Tuesday Blitz July 11 Late 2023"]
[White "Dragomirescu, Robin-Alexandru"]
[Black "Slovineanu, Viacheslav"]
[WhiteFideId "1213849"]
[BlackFideId "13900510"]
[WhiteElo "2498"]
[BlackElo "2374"]
[Result "0-1"]
[Round "8"]
[TimeControl "180+2"]
[Date "2023.07.11"]
[WhiteClock "0:01:44"]
[BlackClock "0:00:53"]
[Board "90"]

1. b3 {[%clk 0:03:00]}  d5 {[%clk 0:02:55]} 2. Bb2 {[%clk 0:03:01]}  Nf6 {[%clk 0:02:55]} 3. e3 {[%clk 0:03:02]}  e6 {[%clk 0:02:49]} 4. Nf3 {[%clk 0:03:02]}  Be7 {[%clk 0:02:47]} 5. c4 {[%clk 0:03:02]}  c5 {[%clk 0:02:46]} 6. cxd5 {[%clk 0:03:02]}  exd5 {[%clk 0:02:46]} 7. Bb5+ {[%clk 0:03:02]}  Nbd7 {[%clk 0:02:36]} 8. h3 {[%clk 0:03:02]}  O-O {[%clk 0:02:35]} 9. O-O {[%clk 0:03:02]}  a6 {[%clk 0:02:35]} 10. Be2 {[%clk 0:03:02]}  b5 {[%clk 0:02:33]} 11. d4 {[%clk 0:03:03]}  c4 {[%clk 0:02:32]} 12. Ne5 {[%clk 0:03:03]}  Bb7 {[%clk 0:02:30]} 13. a4 {[%clk 0:03:00]}  Nxe5 {[%clk 0:02:23]} 14. dxe5 {[%clk 0:03:00]}  Nd7 {[%clk 0:02:23]} 15. bxc4 {[%clk 0:02:57]}  dxc4 {[%clk 0:02:20]} 16. Bf3 {[%clk 0:02:56]}  Bxf3 {[%clk 0:02:03]} 17. Qxf3 {[%clk 0:02:57]}  b4 {[%clk 0:01:59]} 18. Bd4 {[%clk 0:02:55]}  Qc7 {[%clk 0:01:48]} 19. Nd2 {[%clk 0:02:54]}  c3 {[%clk 0:01:41]} 20. Ne4 {[%clk 0:02:53]}  Nxe5 {[%clk 0:01:15]} 21. Qg3 {[%clk 0:02:53]}  f6 {[%clk 0:01:15]} 22. Rfd1 {[%clk 0:02:36]}  c2 {[%clk 0:01:11]} 23. Rdc1 {[%clk 0:02:35]}  b3 {[%clk 0:01:11]} 24. Nd2 {[%clk 0:02:28]}  Rab8 {[%clk 0:01:09]} 25. Bb2 {[%clk 0:01:55]}  Bd6 {[%clk 0:00:58]} 26. Ne4 {[%clk 0:01:53]}  Nc4 {[%clk 0:00:54]} 27. Nxd6 {[%clk 0:01:51]}  Qxd6 {[%clk 0:00:53]} 28. Qxd6 {[%clk 0:01:44]}  Nxd6 {[%clk 0:00:53]} 0-1


[Site "https://www.chess.com"]

[Event "Titled Tuesday Blitz July 11 Late 2023"]
[White "Novikov, Evgenij"]
[Black "Dubreuil, Julien"]
[WhiteFideId "4125380"]
[BlackFideId "621285"]
[WhiteElo "2478"]
[BlackElo "2366"]
[Result "0-1"]
[Round "8"]
[TimeControl "180+2"]
[Date "2023.07.11"]
[WhiteClock "0:00:00"]
[BlackClock "0:00:32"]
[Board "92"]

1. e4 {[%clk 0:02:59]}  c5 {[%clk 0:02:59]} 2. Nc3 {[%clk 0:02:57]}  Nc6 {[%clk 0:02:59]} 3. Bb5 {[%clk 0:02:56]}  Na5 {[%clk 0:02:57]} 4. a4 {[%clk 0:02:52]}  a6 {[%clk 0:02:50]} 5. Be2 {[%clk 0:02:51]}  Nc6 {[%clk 0:02:50]} 6. f4 {[%clk 0:02:49]}  g6 {[%clk 0:02:49]} 7. Nf3 {[%clk 0:02:49]}  Bg7 {[%clk 0:02:49]} 8. Bc4 {[%clk 0:02:46]}  e6 {[%clk 0:02:48]} 9. O-O {[%clk 0:02:44]}  Nge7 {[%clk 0:02:49]} 10. f5 {[%clk 0:02:43]}  d5 {[%clk 0:02:48]} 11. fxe6 {[%clk 0:02:41]}  fxe6 {[%clk 0:02:48]} 12. Ba2 {[%clk 0:02:23]}  O-O {[%clk 0:02:44]} 13. d3 {[%clk 0:02:16]}  Nd4 {[%clk 0:02:43]} 14. Bg5 {[%clk 0:02:06]}  Qd6 {[%clk 0:02:34]} 15. Bxe7 {[%clk 0:01:53]}  Qxe7 {[%clk 0:02:33]} 16. exd5 {[%clk 0:01:53]}  Kh8 {[%clk 0:02:28]} 17. Ne4 {[%clk 0:01:31]}  exd5 {[%clk 0:02:22]} 18. Bxd5 {[%clk 0:01:29]}  Bg4 {[%clk 0:02:21]} 19. Ned2 {[%clk 0:01:15]}  Rad8 {[%clk 0:01:54]} 20. Be4 {[%clk 0:01:13]}  c4 {[%clk 0:01:49]} 21. h3 {[%clk 0:01:03]}  Bf5 {[%clk 0:01:39]} 22. Bxf5 {[%clk 0:00:57]}  Nxf5 {[%clk 0:01:39]} 23. Nxc4 {[%clk 0:00:45]}  Qc5+ {[%clk 0:01:21]} 24. Kh2 {[%clk 0:00:42]}  b5 {[%clk 0:01:19]} 25. axb5 {[%clk 0:00:41]}  axb5 {[%clk 0:01:18]} 26. Ncd2 {[%clk 0:00:20]}  Ne3 {[%clk 0:01:13]} 27. Qc1 {[%clk 0:00:20]}  Nxf1+ {[%clk 0:01:04]} 28. Qxf1 {[%clk 0:00:19]}  Qxc2 {[%clk 0:01:03]} 29. Ra7 {[%clk 0:00:15]}  Qxd3 {[%clk 0:00:59]} 30. Qg1 {[%clk 0:00:10]}  Bxb2 {[%clk 0:00:57]} 31. Ng5 {[%clk 0:00:03]}  Bd4 {[%clk 0:00:52]} 32. Rxh7+ {[%clk 0:00:02]}  Kg8 {[%clk 0:00:51]} 33. Qe1 {[%clk 0:00:03]}  Be3 {[%clk 0:00:43]} 34. Qh4 {[%clk 0:00:02]}  Bf4+ {[%clk 0:00:36]} 35. Kh1 {[%clk 0:00:00]}  Qb1+ {[%clk 0:00:32]} 0-1


[Site "https://www.chess.com"]

[Event "Titled Tuesday Blitz July 11 Late 2023"]
[White "Reprintsev, Alexander"]
[Black "Garmendiarov"]
[WhiteFideId "14100541"]
[WhiteElo "2474"]
[BlackElo "2353"]
[Result "0-1"]
[Round "8"]
[TimeControl "180+2"]
[Date "2023.07.11"]
[WhiteClock "0:00:00"]
[BlackClock "0:00:07"]
[Board "94"]

1. e4 {[%clk 0:02:53]}  c5 {[%clk 0:02:59]} 2. b3 {[%clk 0:02:52]}  Nf6 {[%clk 0:02:59]} 3. e5 {[%clk 0:02:51]}  Nd5 {[%clk 0:02:58]} 4. Nc3 {[%clk 0:02:50]}  Nxc3 {[%clk 0:02:56]} 5. dxc3 {[%clk 0:02:50]}  Nc6 {[%clk 0:02:57]} 6. Nf3 {[%clk 0:02:49]}  g6 {[%clk 0:02:57]} 7. Bc4 {[%clk 0:02:48]}  Bg7 {[%clk 0:02:57]} 8. O-O {[%clk 0:02:48]}  O-O {[%clk 0:02:55]} 9. Bf4 {[%clk 0:02:46]}  a6 {[%clk 0:02:47]} 10. a4 {[%clk 0:02:45]}  Qc7 {[%clk 0:02:35]} 11. Qd2 {[%clk 0:02:43]}  Nxe5 {[%clk 0:02:26]} 12. Nxe5 {[%clk 0:01:41]}  Bxe5 {[%clk 0:02:27]} 13. Bxe5 {[%clk 0:01:42]}  Qxe5 {[%clk 0:02:27]} 14. Rfe1 {[%clk 0:01:42]}  Qf6 {[%clk 0:02:24]} 15. Qe3 {[%clk 0:01:42]}  e6 {[%clk 0:01:59]} 16. Qxc5 {[%clk 0:01:39]}  Qxc3 {[%clk 0:01:57]} 17. Qd6 {[%clk 0:01:36]}  b5 {[%clk 0:01:49]} 18. axb5 {[%clk 0:01:34]}  axb5 {[%clk 0:01:49]} 19. Rxa8 {[%clk 0:01:28]}  Qxe1+ {[%clk 0:01:49]} 20. Bf1 {[%clk 0:01:28]}  Qc3 {[%clk 0:01:17]} 21. Bxb5 {[%clk 0:01:15]}  Qxc2 {[%clk 0:01:13]} 22. b4 {[%clk 0:01:05]}  Qe4 {[%clk 0:00:55]} 23. Rb8 {[%clk 0:00:57]}  Qb1+ {[%clk 0:00:32]} 24. Bf1 {[%clk 0:00:55]}  Qc1 {[%clk 0:00:32]} 25. h4 {[%clk 0:00:52]}  Qc6 {[%clk 0:00:31]} 26. Qe7 {[%clk 0:00:43]}  Qc7 {[%clk 0:00:23]} 27. Rb5 {[%clk 0:00:28]}  Bb7 {[%clk 0:00:18]} 28. h5 {[%clk 0:00:24]}  Bc6 {[%clk 0:00:15]} 29. Rc5 {[%clk 0:00:20]}  Qd8 {[%clk 0:00:14]} 30. Qd6 {[%clk 0:00:19]}  Qb8 {[%clk 0:00:12]} 31. Qd4 {[%clk 0:00:19]}  Rc8 {[%clk 0:00:09]} 32. h6 {[%clk 0:00:18]}  Kf8 {[%clk 0:00:04]} 33. Qg7+ {[%clk 0:00:18]}  Ke7 {[%clk 0:00:04]} 34. Qxh7 {[%clk 0:00:18]}  Rh8 {[%clk 0:00:04]} 35. Qg7 {[%clk 0:00:18]}  Qg8 {[%clk 0:00:04]} 36. Qd4 {[%clk 0:00:16]}  Rxh6 {[%clk 0:00:03]} 37. f3 {[%clk 0:00:14]}  Qh8 {[%clk 0:00:03]} 38. Qf4 {[%clk 0:00:12]}  Rh1+ {[%clk 0:00:03]} 39. Kf2 {[%clk 0:00:12]}  Qh4+ {[%clk 0:00:02]} 40. Qxh4+ {[%clk 0:00:12]}  Rxh4 {[%clk 0:00:03]} 41. b5 {[%clk 0:00:12]}  Bb7 {[%clk 0:00:01]} 42. Rc7 {[%clk 0:00:12]}  Bd5 {[%clk 0:00:02]} 43. g4 {[%clk 0:00:10]}  Rh2+ {[%clk 0:00:01]} 44. Bg2 {[%clk 0:00:10]}  Rh8 {[%clk 0:00:02]} 45. f4 {[%clk 0:00:09]}  Bxg2 {[%clk 0:00:02]} 46. Kxg2 {[%clk 0:00:10]}  Rb8 {[%clk 0:00:03]} 47. Rc5 {[%clk 0:00:10]}  Kd6 {[%clk 0:00:03]} 48. Re5 {[%clk 0:00:07]}  f6 {[%clk 0:00:03]} 49. Re3 {[%clk 0:00:07]}  Rxb5 {[%clk 0:00:04]} 50. Rd3+ {[%clk 0:00:07]}  Rd5 {[%clk 0:00:05]} 51. Re3 {[%clk 0:00:07]}  g5 {[%clk 0:00:05]} 52. Kg3 {[%clk 0:00:05]}  gxf4+ {[%clk 0:00:05]} 53. Kxf4 {[%clk 0:00:06]}  Rd4+ {[%clk 0:00:06]} 54. Kf3 {[%clk 0:00:06]}  f5 {[%clk 0:00:06]} 55. Ra3 {[%clk 0:00:07]}  Rxg4 {[%clk 0:00:06]} 56. Rd3+ {[%clk 0:00:06]}  Ke5 {[%clk 0:00:07]} 57. Ra3 {[%clk 0:00:07]}  Kf6 {[%clk 0:00:07]} 58. Ra8 {[%clk 0:00:06]}  d5 {[%clk 0:00:08]} 59. Rf8+ {[%clk 0:00:06]}  Ke5 {[%clk 0:00:08]} 60. Ra8 {[%clk 0:00:07]}  Rh4 {[%clk 0:00:09]} 61. Kf2 {[%clk 0:00:07]}  Rh3 {[%clk 0:00:09]} 62. Ra2 {[%clk 0:00:08]}  Rc3 {[%clk 0:00:10]} 63. Re2+ {[%clk 0:00:08]}  Kf4 {[%clk 0:00:11]} 64. Ra2 {[%clk 0:00:09]}  e5 {[%clk 0:00:11]} 65. Ke2 {[%clk 0:00:09]}  e4 {[%clk 0:00:12]} 66. Ra5 {[%clk 0:00:09]}  d4 {[%clk 0:00:12]} 67. Kd2 {[%clk 0:00:09]}  e3+ {[%clk 0:00:12]} 68. Ke2 {[%clk 0:00:09]}  Rc2+ {[%clk 0:00:12]} 69. Kd1 {[%clk 0:00:08]}  d3 {[%clk 0:00:12]} 70. Ra4+ {[%clk 0:00:06]}  Kf3 {[%clk 0:00:13]} 71. Rh4 {[%clk 0:00:07]}  f4 {[%clk 0:00:13]} 72. Rh3+ {[%clk 0:00:06]}  Ke4 {[%clk 0:00:14]} 73. Rh8 {[%clk 0:00:06]}  Ra2 {[%clk 0:00:14]} 74. Kc1 {[%clk 0:00:05]}  d2+ {[%clk 0:00:14]} 75. Kb1 {[%clk 0:00:06]}  Rc2 {[%clk 0:00:13]} 76. Kxc2 {[%clk 0:00:06]}  Kf3 {[%clk 0:00:14]} 77. Kd1 {[%clk 0:00:05]}  Kf2 {[%clk 0:00:13]} 78. Rh2+ {[%clk 0:00:05]}  Kg1 {[%clk 0:00:14]} 79. Rh3 {[%clk 0:00:04]}  Kg2 {[%clk 0:00:13]} 80. Rh4 {[%clk 0:00:03]}  f3 {[%clk 0:00:13]} 81. Re4 {[%clk 0:00:02]}  Kf2 {[%clk 0:00:13]} 82. Re6 {[%clk 0:00:02]}  e2+ {[%clk 0:00:08]} 83. Kxd2 {[%clk 0:00:03]}  Kf1 {[%clk 0:00:08]} 84. Re3 {[%clk 0:00:02]}  Kf2 {[%clk 0:00:07]} 85. Re4 {[%clk 0:00:00]}  Kg2 {[%clk 0:00:07]} 0-1


[Site "https://www.chess.com"]